bitfinex/quotes_BTCUSD_20251011
["timestamp","ask_amount","ask_price","bid_price","bid_amount"]
[1760187296119,0.17776197,112510.0,112500.0,0.10292544]
[1760187296961,0.20599197,112510.0,112500.0,0.10292544]
[1760187299387,0.20599197,112510.0,112500.0,0.00293095]
[1760187299609,0.22984197,112510.0,112500.0,0.00293095]
[1760187299825,0.20599197,112510.0,112500.0,0.00293095]
[1760187300509,0.20599197,112510.0,112500.0,0.00193095]
[1760187300880,0.20599197,112510.0,112500.0,0.00093095]
[1760187301336,0.20599197,112510.0,112500.0,0.00193095]
[1760187309133,0.17776197,112510.0,112500.0,0.00193095]
[1760187309448,0.19377197,112510.0,112500.0,0.00193095]
[1760187310140,0.17776197,112510.0,112500.0,0.00193095]
[1760187310802,0.19377197,112510.0,112500.0,0.00193095]
[1760187312482,0.17776197,112510.0,112500.0,0.00193095]
[1760187315196,0.58135578,112520.0,112510.0,0.17776197]
[1760187315197,0.22913797,112520.0,112510.0,0.17776197]
[1760187315512,0.00059688,112520.0,112510.0,0.5534817]
[1760187315850,0.00059688,112520.0,112510.0,0.7331197]
[1760187316063,0.00059688,112520.0,112510.0,0.80003392]
[1760187316641,0.00059688,112520.0,112510.0,0.80103392]
[1760187316816,0.00059688,112520.0,112510.0,0.72039041]
[1760187317045,0.00059688,112520.0,112510.0,0.83389221]
[1760187317349,0.00059688,112520.0,112510.0,1.23289221]
[1760187317559,0.00059688,112520.0,112510.0,1.23189221]
[1760187317763,0.00059688,112520.0,112510.0,1.23289221]
[1760187317982,0.00059688,112520.0,112510.0,1.23489221]
[1760187318568,0.00059688,112520.0,112510.0,1.21291993]
[1760187318773,0.0002,112550.0,112540.0,0.17771459]
[1760187318977,0.00035121,112550.0,112540.0,0.17771459]
[1760187319799,0.17805001,112550.0,112540.0,0.17771459]
[1760187320222,0.17805001,112550.0,112540.0,0.17871459]
[1760187320642,0.17805001,112550.0,112540.0,0.001]
[1760187321900,0.17805001,112550.0,112540.0,0.17871459]
[1760187322061,0.17805001,112550.0,112540.0,0.001]
[1760187324482,0.17977998,112550.0,112540.0,0.001]
[1760187324902,0.19599998,112550.0,112540.0,0.001]
[1760187325108,0.17977998,112550.0,112540.0,0.001]
[1760187325539,0.20734998,112550.0,112540.0,0.001]
[1760187325743,0.23197998,112550.0,112540.0,0.001]
[1760187327122,0.24715051,112550.0,112540.0,0.001]
[1760187328001,0.17773038,112530.0,112520.0,0.4088873]
[1760187328203,0.17773038,112530.0,112520.0,0.50888179]
[1760187328868,0.17773038,112530.0,112520.0,0.68662796]
[1760187330009,0.17773038,112530.0,112520.0,0.28662796]
[1760187330283,0.17773038,112530.0,112520.0,0.28762796]
[1760187330499,0.17773038,112530.0,112520.0,0.68762796]
[1760187330694,0.17773038,112530.0,112520.0,0.68862796]
[1760187333440,0.17830715,112530.0,112520.0,0.28862796]
[1760187334038,0.17830715,112530.0,112520.0,0.68862796]
[1760187335571,0.17830715,112530.0,112520.0,0.50199449]
[1760187335769,0.19452715,112530.0,112520.0,0.10199449]
[1760187338503,0.17773038,112530.0,112520.0,0.10199449]
[1760187339582,0.19395038,112530.0,112520.0,0.10199449]
[1760187339993,0.17773038,112530.0,112520.0,0.10199449]
[1760187341449,0.17773038,112530.0,112520.0,0.27974066]
[1760187341690,0.17773038,112530.0,112520.0,0.10199449]
[1760187343001,0.24452091,112530.0,112520.0,0.10199449]
[1760187343232,0.27125395,112530.0,112520.0,0.002]
[1760187343714,0.27125395,112530.0,112520.0,0.001]
[1760187345194,0.17774617,112520.0,112510.0,0.00095091]
[1760187346621,0.17774617,112520.0,112510.0,0.00195091]
[1760187347049,0.19342617,112520.0,112510.0,0.00195091]
[1760187348428,0.17774617,112520.0,112510.0,0.00195091]
[1760187349253,0.17773038,112530.0,112510.0,0.18557197]
[1760187349452,0.17773486,112530.0,112520.0,0.17774617]
[1760187349640,0.17773486,112530.0,112510.0,0.17971288]
[1760187350286,0.17773486,112530.0,112510.0,0.57871288]
[1760187351158,0.17773486,112530.0,112510.0,0.67870737]
[1760187352115,0.17773486,112530.0,112510.0,0.74384681]
[1760187353110,0.17773486,112530.0,112510.0,0.67870737]
[1760187353313,0.17773486,112530.0,112510.0,0.27970737]
[1760187353809,0.17773486,112530.0,112510.0,0.67970737]
[1760187354536,0.17774617,112520.0,112510.0,0.70985927]
[1760187355646,0.17774617,112520.0,112510.0,0.70885927]
[1760187355824,0.17774617,112520.0,112510.0,0.70985927]
[1760187356012,0.17774617,112520.0,112510.0,0.5330973]
[1760187356213,0.17774617,112520.0,112510.0,0.1330973]
[1760187356655,0.17774617,112520.0,112510.0,0.19816335]
[1760187359652,0.17774617,112520.0,112510.0,0.37592532]
[1760187360083,0.19308617,112520.0,112510.0,0.1029454]
[1760187360300,0.2434167,112520.0,112510.0,0.1029454]
[1760187360542,0.2195367,112520.0,112510.0,0.00295091]
[1760187361201,0.1929167,112520.0,112510.0,0.00295091]
[1760187361613,0.17774617,112520.0,112510.0,0.00295091]
[1760187361849,0.17774617,112520.0,112510.0,0.00195091]
[1760187362060,0.17774617,112520.0,112510.0,0.00095091]
[1760187362288,0.17774617,112520.0,112510.0,0.1009454]
[1760187362504,0.17774617,112520.0,112510.0,0.1019454]
[1760187362702,0.17774617,112520.0,112510.0,0.1029454]
[1760187363026,0.17774617,112520.0,112510.0,0.1019454]
[1760187363263,0.17774617,112520.0,112510.0,0.1029454]
[1760187363474,0.17774617,112520.0,112510.0,0.11036047]
[1760187366475,0.19290539,112530.0,112510.0,0.28812244]
[1760187366671,0.22541699,112540.0,112520.0,0.17774617]
[1760187366672,0.19025699,112540.0,112520.0,0.17774617]
[1760187366973,0.1780531,112550.0,112530.0,0.18411694]
[1760187367176,0.1780531,112550.0,112530.0,0.17773038]
[1760187367602,0.00057667,112540.0,112530.0,0.17773038]
[1760187367813,0.00057667,112540.0,112530.0,0.27772487]
[1760187369336,0.00057667,112540.0,112530.0,0.27872487]
[1760187369782,0.17829126,112540.0,112530.0,0.27872487]
[1760187370209,0.17829126,112540.0,112530.0,0.10099449]
[1760187370416,0.17829126,112540.0,112530.0,0.27972487]
[1760187370844,0.17829126,112540.0,112530.0,0.67972487]
[1760187373755,0.17829126,112540.0,112530.0,0.27972487]
[1760187374261,0.17829126,112540.0,112530.0,0.67972487]
[1760187377325,0.17829126,112540.0,112530.0,0.27972487]
[1760187377851,0.17829126,112540.0,112530.0,0.67972487]
[1760187379174,0.17829126,112540.0,112530.0,0.50199449]
[1760187379374,0.17829126,112540.0,112530.0,0.67972487]
[1760187380405,0.00057667,112540.0,112530.0,0.67972487]
[1760187381159,0.00057667,112540.0,112530.0,0.27972487]
[1760187381560,0.00057667,112540.0,112530.0,0.67972487]
[1760187383700,0.00057667,112540.0,112530.0,1.18693803]
[1760187386428,0.00057667,112540.0,112530.0,0.76925439]
[1760187387150,0.17829126,112540.0,112530.0,0.76925439]
[1760187387857,0.00057667,112540.0,112530.0,0.76925439]
[1760187390992,0.00057667,112540.0,112530.0,0.36925439]
[1760187391456,0.00057667,112540.0,112530.0,0.76925439]
[1760187394352,0.00057667,112540.0,112530.0,0.36925439]
[1760187394858,0.00057667,112540.0,112530.0,0.76925439]
[1760187396400,0.00057667,112540.0,112530.0,0.88075619]
[1760187400745,0.00057667,112540.0,112530.0,0.76925439]
[1760187403903,0.00057667,112540.0,112530.0,0.36925439]
[1760187404330,0.00057667,112540.0,112530.0,0.88075619]
[1760187407198,0.00057667,112540.0,112530.0,1.29843983]
[1760187407419,0.00035121,112550.0,112540.0,0.93539823]
[1760187407646,0.19347483,112560.0,112550.0,0.89302675]
[1760187407862,0.16679404,112560.0,112550.0,0.99238573]
[1760187408072,0.14011808,112560.0,112550.0,0.99238573]
[1760187408287,0.11344212,112560.0,112550.0,1.11705227]
[1760187408503,0.08676616,112560.0,112550.0,1.89442281]
[1760187408717,0.0600902,112560.0,112550.0,1.51909486]
[1760187408928,0.03341424,112560.0,112550.0,1.51909486]
[1760187409148,0.00556098,112560.0,112550.0,1.52009486]
[1760187409365,0.0002,112580.0,112570.0,0.17766722]
[1760187409574,0.0002,112580.0,112570.0,0.55299517]
[1760187409984,0.0002,112580.0,112570.0,0.27766171]
[1760187410223,0.0002,112580.0,112570.0,1.05298966]
[1760187411163,0.0002,112580.0,112570.0,1.1184945]
[1760187411366,0.0002,112580.0,112570.0,1.20902402]
[1760187412073,0.0002,112580.0,112570.0,1.55806119]
[1760187412259,0.0002,112580.0,112570.0,1.55906119]
[1760187412463,0.0002,112580.0,112570.0,1.18373324]
[1760187415315,0.0002,112590.0,112580.0,0.51765144]
[1760187415452,0.0002,112590.0,112580.0,0.89297939]
[1760187415453,0.00035118,112590.0,112580.0,0.89297939]
[1760187415792,0.00323316,112590.0,112580.0,0.98250891]
[1760187415973,0.0002,112600.0,112590.0,0.51763566]
[1760187416177,0.0002,112600.0,112590.0,0.89296361]
[1760187416797,0.0002,112600.0,112590.0,1.29296361]
[1760187418028,0.0002,112600.0,112590.0,1.38249313]
[1760187419107,0.0002,112600.0,112590.0,1.00716518]
[1760187419307,0.0002,112600.0,112590.0,1.38249313]
[1760187419652,0.0002,112600.0,112590.0,1.10715967]
[1760187419882,0.0002,112600.0,112590.0,1.48348762]
[1760187420583,0.0002,112600.0,112590.0,1.48448762]
[1760187421560,0.00077621,112600.0,112590.0,1.48448762]
[1760187424762,0.00077621,112600.0,112590.0,1.10915967]
[1760187424917,0.00077621,112600.0,112590.0,1.48448762]
[1760187430042,0.00077621,112600.0,112590.0,0.10199449]
[1760187430043,0.1950461,112600.0,112590.0,0.10199449]
[1760187430200,0.1950461,112600.0,112590.0,0.002]
[1760187430408,0.2065961,112600.0,112590.0,0.002]
[1760187430980,0.2065961,112600.0,112580.0,0.57859526]
[1760187431634,0.2065961,112600.0,112580.0,0.67858975]
[1760187433581,0.2065961,112600.0,112580.0,0.27858975]
[1760187434164,0.2065961,112600.0,112580.0,0.67858975]
[1760187435571,0.17763566,112590.0,112580.0,0.50094464]
[1760187435728,0.17763566,112590.0,112580.0,0.47109654]
[1760187435931,0.19428566,112590.0,112580.0,0.10094464]
[1760187436227,0.24453619,112590.0,112580.0,0.10094464]
[1760187436405,0.24453619,112590.0,112580.0,0.00095015]
[1760187437151,0.24453619,112590.0,112580.0,0.00195015]
[1760187437566,0.24453619,112590.0,112580.0,0.00095015]
[1760187438155,0.24453619,112590.0,112580.0,0.00195015]
[1760187438482,0.24453619,112590.0,112580.0,0.00095015]
[1760187443669,0.58917861,112590.0,112580.0,0.00095015]
[1760187445173,0.59117861,112590.0,112580.0,0.00095015]
[1760187453771,0.38304018,112590.0,112580.0,0.00095015]
[1760187453975,0.58859584,112590.0,112580.0,0.00095015]
[1760187455726,0.61532026,112590.0,112580.0,0.00095015]
[1760187455932,0.69895287,112590.0,112580.0,0.00095015]
[1760187456240,0.69826761,112590.0,112580.0,0.00095015]
[1760187456648,0.61532026,112590.0,112580.0,0.00095015]
[1760187475493,0.60014973,112590.0,112580.0,0.00095015]
[1760187475716,0.61532026,112590.0,112580.0,0.00095015]
[1760187484150,0.56272619,112590.0,112580.0,0.00095015]
[1760187484556,0.58705619,112590.0,112580.0,0.00095015]
[1760187485959,0.56272619,112590.0,112580.0,0.00095015]
[1760187486163,0.24705619,112590.0,112580.0,0.00095015]
[1760187486371,0.22272619,112590.0,112580.0,0.00095015]
[1760187487343,0.24705619,112590.0,112580.0,0.00095015]
[1760187489254,0.22272619,112590.0,112580.0,0.00095015]
[1760187489623,0.24705619,112590.0,112580.0,0.00095015]
[1760187489999,0.22272619,112590.0,112580.0,0.00095015]
[1760187490202,0.24944504,112590.0,112580.0,0.00095015]
[1760187490657,0.23427451,112590.0,112580.0,0.00095015]
[1760187491107,0.19480619,112590.0,112580.0,0.00095015]
[1760187493531,0.17963566,112590.0,112580.0,0.00095015]
[1760187493897,0.19480619,112590.0,112580.0,0.00095015]
[1760187494381,0.17963566,112590.0,112580.0,0.00095015]
[1760187495392,0.17863566,112590.0,112580.0,0.00095015]
[1760187495795,0.17763566,112590.0,112580.0,0.00095015]
[1760187496313,0.17763566,112590.0,112580.0,0.17860159]
[1760187497118,0.17763566,112590.0,112580.0,0.27859608]
[1760187498119,0.19356663,112600.0,112580.0,0.27859608]
[1760187498784,0.19356663,112600.0,112580.0,0.27959608]
[1760187498992,0.17763566,112590.0,112580.0,0.31074798]
[1760187499160,0.17763566,112590.0,112580.0,0.30974798]
[1760187499361,0.17763566,112590.0,112580.0,0.30874798]
[1760187499590,0.19356663,112600.0,112580.0,0.30874798]
[1760187499949,0.00077621,112600.0,112590.0,0.21332143]
[1760187500158,0.00077621,112600.0,112590.0,0.54778756]
[1760187500597,0.00077621,112600.0,112590.0,0.64778205]
[1760187501022,0.00077621,112600.0,112590.0,0.72715851]
[1760187501236,0.00077621,112600.0,112590.0,0.81668803]
[1760187501514,0.00077621,112600.0,112590.0,1.13731157]
[1760187501724,0.00077621,112600.0,112590.0,1.55464171]
[1760187501898,0.00077621,112600.0,112590.0,1.63401817]
[1760187502288,0.0002,112610.0,112600.0,0.17761989]
[1760187502490,0.0002,112610.0,112600.0,0.26714941]
[1760187502900,0.0002,112610.0,112600.0,0.3671439]
[1760187503142,0.0002,112610.0,112600.0,0.7671439]
[1760187503551,0.0002,112610.0,112600.0,0.7681439]
[1760187503778,0.0002,112610.0,112600.0,0.7982958]
[1760187505107,0.0002,112610.0,112600.0,0.8650232]
[1760187505622,0.0002,112610.0,112600.0,0.8660232]
[1760187507127,0.0002,112610.0,112600.0,0.8358713]
[1760187507360,0.0002,112610.0,112600.0,0.8660232]
[1760187507865,0.00077612,112610.0,112600.0,0.8660232]
[1760187512735,0.00077612,112610.0,112600.0,0.77649368]
[1760187515806,0.00077612,112610.0,112600.0,0.37649368]
[1760187516305,0.00077612,112610.0,112600.0,0.77649368]
[1760187517512,0.17838024,112610.0,112600.0,0.59887379]
[1760187517703,0.17838024,112610.0,112600.0,0.19887379]
[1760187518287,0.20519024,112610.0,112600.0,0.002]
[1760187518516,0.23008024,112610.0,112600.0,0.002]
[1760187519138,0.18981024,112610.0,112600.0,0.002]
[1760187519366,0.17761989,112600.0,112590.0,0.94873416]
[1760187519499,0.17838024,112610.0,112600.0,0.17761989]
[1760187519700,0.17838024,112610.0,112590.0,0.91858226]
[1760187520149,0.17838024,112610.0,112590.0,0.98517557]
[1760187520353,0.17838024,112610.0,112590.0,1.08517006]
[1760187520547,0.17761989,112600.0,112590.0,1.11532196]
[1760187521052,0.17761989,112600.0,112590.0,0.93768972]
[1760187521224,0.17761989,112600.0,112590.0,1.11532538]
[1760187521629,0.19379989,112600.0,112590.0,0.71532538]
[1760187521943,0.20623989,112600.0,112590.0,0.10094451]
[1760187522669,0.20623989,112600.0,112590.0,0.00295002]
[1760187523023,0.24632042,112600.0,112590.0,0.00295002]
[1760187523426,0.24632042,112600.0,112590.0,0.00195002]
[1760187523737,0.24632042,112600.0,112590.0,0.00095002]
[1760187525990,0.22141042,112600.0,112590.0,0.00095002]
[1760187526156,0.24632042,112600.0,112590.0,0.00095002]
[1760187526777,0.22141042,112600.0,112590.0,0.00095002]
[1760187527212,0.24632042,112600.0,112590.0,0.00095002]
[1760187527361,0.22141042,112600.0,112590.0,0.00095002]
[1760187528909,0.24419042,112600.0,112590.0,0.00095002]
[1760187531916,0.22141042,112600.0,112590.0,0.00095002]
[1760187532821,0.24419042,112600.0,112590.0,0.00095002]
[1760187533090,0.22141042,112600.0,112590.0,0.00095002]
[1760187536285,0.24419042,112600.0,112590.0,0.00095002]
[1760187541778,0.19279042,112600.0,112590.0,0.00095002]
[1760187541937,0.17761989,112600.0,112590.0,0.20873758]
[1760187542139,0.17761989,112600.0,112590.0,0.03110192]
[1760187542756,0.17761989,112600.0,112590.0,0.13109641]
[1760187543386,0.19423989,112600.0,112590.0,0.13209641]
[1760187543616,0.24417042,112600.0,112590.0,0.10194451]
[1760187543785,0.24417042,112600.0,112590.0,0.00195002]
[1760187544541,0.24417042,112600.0,112590.0,0.10194451]
[1760187548460,0.22139042,112600.0,112590.0,0.10194451]
[1760187550054,0.00661013,112600.0,112590.0,0.10194451]
[1760187550449,0.18423002,112600.0,112590.0,0.10194451]
[1760187551106,0.20085002,112600.0,112590.0,0.10194451]
[1760187552642,0.00661013,112600.0,112590.0,0.27958017]
[1760187552755,0.17838024,112610.0,112600.0,0.17761989]
[1760187552956,0.18499037,112610.0,112600.0,0.17761989]
[1760187553162,0.00077612,112610.0,112600.0,0.17761989]
[1760187555250,0.00077612,112610.0,112600.0,0.20777179]
[1760187555943,0.00077612,112610.0,112600.0,0.30776628]
[1760187556633,0.00077612,112610.0,112600.0,0.30976628]
[1760187558503,0.00077612,112610.0,112600.0,0.34730179]
[1760187559381,0.00077612,112610.0,112600.0,0.37745369]
[1760187560190,0.00077612,112610.0,112600.0,0.45683015]
[1760187562043,0.00077612,112610.0,112600.0,0.42667825]
[1760187562843,0.00077612,112610.0,112600.0,0.45683015]
[1760187563415,0.17838024,112610.0,112600.0,0.35899084]
[1760187563615,0.17838024,112610.0,112600.0,0.18137095]
[1760187563838,0.17838024,112610.0,112600.0,0.27961438]
[1760187569254,0.17838024,112610.0,112600.0,0.10199449]
[1760187569390,0.17838024,112610.0,112600.0,0.27961438]
[1760187569870,0.17838024,112610.0,112600.0,0.10199449]
[1760187570255,0.17838024,112610.0,112600.0,0.27961438]
[1760187571756,0.21220037,112610.0,112600.0,0.10199449]
[1760187571958,0.21220037,112610.0,112600.0,0.002]
[1760187572457,0.21220037,112610.0,112600.0,0.10199449]
[1760187572603,0.21220037,112610.0,112600.0,0.09999449]
[1760187573008,0.21220037,112610.0,112600.0,0.10099449]
[1760187573231,0.18499037,112610.0,112600.0,0.10099449]
[1760187573800,0.18499037,112610.0,112600.0,0.27861438]
[1760187579437,0.18499037,112610.0,112600.0,0.35799084]
[1760187597014,0.00738625,112610.0,112600.0,0.35799084]
[1760187597238,0.18499037,112610.0,112600.0,0.35799084]
[1760187597591,0.00738625,112610.0,112600.0,0.35799084]
[1760187597904,0.00077612,112610.0,112600.0,0.35799084]
[1760187599815,0.17838024,112610.0,112600.0,0.35799084]
[1760187600014,0.00077612,112610.0,112600.0,0.35799084]
[1760187600573,0.17838024,112610.0,112600.0,0.35799084]
[1760187600773,0.00077612,112610.0,112600.0,0.35799084]
[1760187601134,0.00077612,112610.0,112600.0,0.47767226]
[1760187601315,0.00077612,112610.0,112600.0,0.3982958]
[1760187601536,0.00077612,112610.0,112600.0,0.4778686]
[1760187601736,0.00077612,112610.0,112600.0,0.3982958]
[1760187602680,0.00077612,112610.0,112600.0,0.3972958]
[1760187603126,0.00077612,112610.0,112600.0,0.3982958]
[1760187603547,0.00077612,112610.0,112600.0,0.7982958]
[1760187604312,0.00077612,112610.0,112600.0,0.9107976]
[1760187604663,0.00077612,112610.0,112600.0,0.7992958]
[1760187605101,0.00077612,112610.0,112600.0,0.53214639]
[1760187605312,0.17838024,112610.0,112600.0,0.50199449]
[1760187605537,0.00077612,112610.0,112600.0,0.75916347]
[1760187605745,0.00077612,112610.0,112600.0,0.35916347]
[1760187606166,0.00077612,112610.0,112600.0,0.75916347]
[1760187606594,0.17838024,112610.0,112600.0,0.75916347]
[1760187606818,0.00077612,112610.0,112600.0,0.75916347]
[1760187607243,0.00077612,112610.0,112600.0,0.67961438]
[1760187608018,0.17838024,112610.0,112600.0,0.67961438]
[1760187608437,0.17838024,112610.0,112600.0,0.75916198]
[1760187609087,0.00077612,112610.0,112600.0,0.75916198]
[1760187609279,0.00077612,112610.0,112600.0,0.35916198]
[1760187609696,0.00077612,112610.0,112600.0,0.75916198]
[1760187610378,0.17838024,112610.0,112600.0,0.75916198]
[1760187610810,0.00077612,112610.0,112600.0,0.75916198]
[1760187612748,0.00077612,112610.0,112600.0,0.35916198]
[1760187613172,0.17838024,112610.0,112600.0,0.75916198]
[1760187613814,0.20025037,112610.0,112600.0,0.0815476]
[1760187614019,0.23494037,112610.0,112600.0,0.0815476]
[1760187614914,0.23494037,112610.0,112600.0,0.0805476]
[1760187615151,0.23494037,112610.0,112600.0,0.0795476]
[1760187615540,0.23494037,112610.0,112600.0,0.0805476]
[1760187615752,0.21185037,112610.0,112600.0,0.0805476]
[1760187615958,0.17761989,112600.0,112590.0,0.66401698]
[1760187616127,0.17761989,112600.0,112590.0,0.18049211]
[1760187616338,0.23418002,112600.0,112590.0,0.08049762]
[1760187616540,0.21109002,112600.0,112590.0,0.08049762]
[1760187617192,0.21109002,112600.0,112590.0,0.08149762]
[1760187617334,0.21109002,112600.0,112590.0,0.00195002]
[1760187617982,0.23418002,112600.0,112590.0,0.00195002]
[1760187618634,0.23418002,112600.0,112590.0,0.00095002]
[1760187619288,0.21109002,112600.0,112590.0,0.00095002]
[1760187621067,0.23531002,112600.0,112590.0,0.00095002]
[1760187624210,0.26202759,112600.0,112590.0,0.00095002]
[1760187625440,0.23780759,112600.0,112590.0,0.00095002]
[1760187626296,0.23119746,112600.0,112590.0,0.00095002]
[1760187626577,0.21094759,112600.0,112590.0,0.00095002]
[1760187626697,0.18423002,112600.0,112590.0,0.00095002]
[1760187628426,0.19994002,112600.0,112590.0,0.00095002]
[1760187629751,0.18423002,112600.0,112590.0,0.00095002]
[1760187630836,0.19994002,112600.0,112590.0,0.00095002]
[1760187631313,0.21209002,112600.0,112590.0,0.00095002]
[1760187632681,0.18423002,112600.0,112590.0,0.00095002]
[1760187635391,0.18423002,112600.0,112590.0,0.00891084]
[1760187637776,0.18423002,112600.0,112590.0,0.00095002]
[1760187637979,0.18423002,112600.0,112590.0,0.00930175]
[1760187638675,0.18423002,112600.0,112590.0,0.18693741]
[1760187638794,0.18423002,112600.0,112590.0,0.00095002]
[1760187639001,0.18423002,112600.0,112590.0,0.00726935]
[1760187639272,0.18423002,112600.0,112590.0,0.18490501]
[1760187639474,0.18423002,112600.0,112590.0,0.17858568]
[1760187639690,0.18423002,112600.0,112590.0,0.00095002]
[1760187644298,0.21241002,112600.0,112590.0,0.00095002]
[1760187644626,0.23527002,112600.0,112590.0,0.00095002]
[1760187645646,0.21241002,112600.0,112590.0,0.00095002]
[1760187646698,0.23527002,112600.0,112590.0,0.00095002]
[1760187650077,0.21241002,112600.0,112590.0,0.00095002]
[1760187650454,0.23679002,112600.0,112590.0,0.00095002]
[1760187652507,0.21241002,112600.0,112590.0,0.00095002]
[1760187653042,0.23679002,112600.0,112590.0,0.00095002]
[1760187653246,0.21241002,112600.0,112590.0,0.00095002]
[1760187655164,0.23679002,112600.0,112590.0,0.00095002]
[1760187655347,0.21241002,112600.0,112590.0,0.00095002]
[1760187655549,0.21176065,112600.0,112590.0,0.00095002]
[1760187655751,0.23614065,112600.0,112590.0,0.00095002]
[1760187658900,0.21176065,112600.0,112590.0,0.00095002]
[1760187659323,0.19588065,112600.0,112590.0,0.00095002]
[1760187659614,0.21233065,112600.0,112590.0,0.00095002]
[1760187660825,0.20003065,112600.0,112590.0,0.00095002]
[1760187661332,0.21148065,112600.0,112590.0,0.00095002]
[1760187664539,0.17761989,112600.0,112590.0,0.00095002]
[1760187664967,0.19406989,112600.0,112590.0,0.00095002]
[1760187665981,0.22989989,112600.0,112590.0,0.00095002]
[1760187667140,0.25661781,112600.0,112590.0,0.00095002]
[1760187677903,0.59661781,112600.0,112590.0,0.00095002]
[1760187681312,0.59761781,112600.0,112590.0,0.00095002]
[1760187686488,0.54533781,112600.0,112590.0,0.00095002]
[1760187686622,0.56102781,112600.0,112590.0,0.00095002]
[1760187687237,0.22102781,112600.0,112590.0,0.00095002]
[1760187687676,0.20433781,112600.0,112590.0,0.00095002]
[1760187688285,0.02671792,112600.0,112590.0,0.17858568]
[1760187688501,0.20433781,112600.0,112590.0,0.00095002]
[1760187688630,0.02671792,112600.0,112590.0,0.17858568]
[1760187688831,0.22232815,112620.0,112590.0,0.17858568]
[1760187688832,0.19826815,112620.0,112590.0,0.17858568]
[1760187689031,0.17760412,112610.0,112600.0,0.17761989]
[1760187689231,0.20431617,112610.0,112590.0,0.17858568]
[1760187689674,0.20431617,112610.0,112600.0,0.17761989]
[1760187689995,0.18671852,112620.0,112600.0,0.17761989]
[1760187690141,0.21342959,112620.0,112600.0,0.17761989]
[1760187691145,0.21342959,112620.0,112600.0,0.27761438]
[1760187691989,0.17760412,112610.0,112600.0,0.27761438]
[1760187692442,0.21342959,112620.0,112600.0,0.27761438]
[1760187693905,0.21342959,112620.0,112610.0,0.17760412]
[1760187694102,0.00025037,112620.0,112610.0,0.24399228]
[1760187694750,0.00025037,112620.0,112610.0,0.17760412]
[1760187694921,0.00025037,112620.0,112610.0,0.27759861]
[1760187695249,0.00025037,112620.0,112610.0,0.83494979]
[1760187695456,0.00025037,112620.0,112610.0,0.83594979]
[1760187695625,0.00025037,112620.0,112610.0,0.86265306]
[1760187696181,0.00025037,112620.0,112610.0,1.26165306]
[1760187696327,0.00025037,112620.0,112610.0,1.26265306]
[1760187696741,0.00025037,112620.0,112610.0,1.34220066]
[1760187697346,0.00025037,112620.0,112610.0,1.26265306]
[1760187697513,0.00025037,112620.0,112610.0,1.26365306]
[1760187697721,0.00025037,112620.0,112610.0,0.8259833]
[1760187697925,0.00025037,112620.0,112610.0,0.8249833]
[1760187698291,0.00025037,112620.0,112610.0,1.26365306]
[1760187698730,0.00025037,112620.0,112610.0,1.33186108]
[1760187699699,0.00082644,112620.0,112610.0,1.33186108]
[1760187700528,0.11582644,112620.0,112610.0,1.33186108]
[1760187701525,0.11582644,112620.0,112610.0,2.10953084]
[1760187701700,0.08916475,112620.0,112610.0,2.10953084]
[1760187701902,0.06250306,112620.0,112610.0,2.10953084]
[1760187702142,0.03584137,112620.0,112610.0,1.67186108]
[1760187702414,0.0052,112630.0,112620.0,0.54774025]
[1760187702634,0.0052,112630.0,112620.0,1.51260929]
[1760187703135,0.0052,112630.0,112620.0,2.01260378]
[1760187703302,0.0002,112640.0,112630.0,0.98539424]
[1760187703509,0.00025037,112640.0,112630.0,1.07492376]
[1760187704104,0.00025037,112640.0,112630.0,1.47848327]
[1760187704522,0.00025037,112640.0,112630.0,1.57847776]
[1760187705371,0.0002,112650.0,112640.0,0.64537847]
[1760187705578,0.0002,112650.0,112640.0,0.73490799]
[1760187706106,0.0002,112650.0,112640.0,0.29723823]
[1760187706266,0.0002,112650.0,112640.0,1.13490799]
[1760187707266,0.0002,112650.0,112640.0,0.69723823]
[1760187707677,0.17774105,112650.0,112640.0,0.60770871]
[1760187708214,0.0002,112650.0,112640.0,0.60770871]
[1760187708614,0.0002,112650.0,112640.0,0.7077032]
[1760187709121,0.0002,112650.0,112640.0,0.7087032]
[1760187710325,0.0002,112650.0,112640.0,0.3087032]
[1760187710888,0.0002,112650.0,112640.0,0.7087032]
[1760187713230,0.19430105,112650.0,112640.0,0.10099449]
[1760187713442,0.2074087,112650.0,112640.0,0.10099449]
[1760187713719,0.23411169,112650.0,112640.0,0.001]
[1760187714215,0.23411169,112650.0,112640.0,0.10099449]
[1760187714978,0.25799169,112650.0,112640.0,0.001]
[1760187715509,0.23411169,112650.0,112640.0,0.001]
[1760187715677,0.17756839,112640.0,112620.0,0.52646663]
[1760187715876,0.17756839,112640.0,112620.0,0.526517]
[1760187716282,0.17756839,112640.0,112630.0,0.09999449]
[1760187718104,0.17756839,112640.0,112630.0,0.10099449]
[1760187718311,0.19412839,112640.0,112630.0,0.10099449]
[1760187718483,0.22938839,112640.0,112630.0,0.10099449]
[1760187718687,0.23221259,112640.0,112630.0,0.10099449]
[1760187719710,0.20427259,112640.0,112630.0,0.10099449]
[1760187720341,0.20427259,112640.0,112630.0,0.11184029]
[1760187721323,0.20427259,112640.0,112630.0,0.10099449]
[1760187721565,0.22083259,112640.0,112630.0,0.10099449]
[1760187721775,0.20542446,112640.0,112630.0,0.10099449]
[1760187722471,0.22198446,112640.0,112630.0,0.10099449]
[1760187723622,0.23336446,112640.0,112630.0,0.10099449]
[1760187724325,0.20542446,112640.0,112630.0,0.10099449]
[1760187725123,0.22198446,112640.0,112630.0,0.10099449]
[1760187725712,0.25724446,112640.0,112630.0,0.10099449]
[1760187725919,0.64993108,112640.0,112630.0,0.001]
[1760187726316,0.59724446,112640.0,112630.0,0.001]
[1760187726927,0.17757258,112630.0,112620.0,5.037e-05]
[1760187727125,0.52895258,112630.0,112620.0,5.037e-05]
[1760187727451,0.56996857,112630.0,112620.0,5.037e-05]
[1760187728450,0.57096857,112630.0,112620.0,5.037e-05]
[1760187729446,0.65009477,112630.0,112620.0,5.037e-05]
[1760187730253,0.57096857,112630.0,112620.0,5.037e-05]
[1760187737682,0.57999601,112630.0,112620.0,5.037e-05]
[1760187743410,0.57096857,112630.0,112620.0,5.037e-05]
[1760187744628,0.23096857,112630.0,112620.0,5.037e-05]
[1760187744823,0.20708857,112630.0,112620.0,5.037e-05]
[1760187745011,0.00157599,112630.0,112620.0,0.17763872]
[1760187745242,0.00057599,112630.0,112620.0,0.17763872]
[1760187745871,0.17756839,112640.0,112620.0,0.17763872]
[1760187746038,0.17757258,112630.0,112620.0,0.27763321]
[1760187746554,0.17757258,112630.0,112620.0,0.10004486]
[1760187746808,0.17757258,112630.0,112620.0,0.11159375]
[1760187747153,0.20541258,112630.0,112620.0,0.11159375]
[1760187747503,0.22862258,112630.0,112620.0,0.10004486]
[1760187747643,0.22862258,112630.0,112620.0,0.00105037]
[1760187747844,0.22862258,112630.0,112620.0,0.00205037]
[1760187748049,0.22612258,112630.0,112620.0,0.00205037]
[1760187748490,0.22612258,112630.0,112620.0,5.037e-05]
[1760187750411,0.20291258,112630.0,112620.0,5.037e-05]
[1760187750623,0.17507258,112630.0,112620.0,5.037e-05]